[Event "Italian-ch Semifinal 2022"]
[Site "Acqui Terme"]
[Date "2022.06.15"]
[Round "4.3"]
[White "Genocchio, Daniele"]
[Black "Pasini, Nicolo"]
[Result "1/2-1/2"]
[ECO "A14"]
[WhiteElo "2365"]
[BlackElo "2227"]
[Annotator "TA"]
[PlyCount "168"]
[EventDate "2022.06.15"]
[EventType "swiss"]
[EventCountry "ITA"]
[SourceTitle "playchess.com"]
[Source "ChessBase"]
[SourceQuality "1"]
[TimeControl "40/5400+30:1800+30"]

{[%evp 18,168,8,12,0,-20,16,3,12,0,16,0,0,0,0,-22,0,-48,-41,-44,-51,-13,14,8,47,65,96,91,103,95,108,105,97,98,106,106,100,99,109,97,85,85,119,106,125,80,87,89,89,88,93,89,89,81,96,96,101,101,102,89,95,51,112,112,112,112,112,111,111,104,104,98,98,104,119,111,121,102,129,127,136,127,155,155,138,138,138,138,155,137,164,157,177,157,170,150,146,145,145,147,321,319,328,321,321,321,321,321,522,522,496,321,347,333,2269,1506,4918,4133,3090,3481,3090,2310,29962,1435,29963,11471,10188,8670,1515,131,131,8,8,8,8,8,8,8,8,8,8,8,8,8,8,8,8,8,8,0,8,8,8]} 1. c4 {[%emt 0:05:27]} e6 {[%emt 0:01:13]} 2. Nf3 {[%emt 0:01:23]} d5 {[%emt 0:00:06]} 3. b3 {[%emt 0:01:00]} Nf6 {[%emt 0:00:15]} 4. g3 {[%emt 0:04:55]} Be7 {[%emt 0:01:29]} 5. Bg2 {[%emt 0:00:22]} O-O {[%emt 0:00:08]} 6. O-O {[%emt 0:01:05]} c5 {[%emt 0:00:04]} 7. Bb2 {[%emt 0:04:16]} Nc6 {[%emt 0:00:06]} 8. e3 {[%emt 0:06:20]} b6 {[%emt 0:01:16]} 9. Qe2 {[%emt 0:03:28]} Ba6 {[%emt 0:00:16]} 10. Rd1 {[%emt 0:05:04]} Rc8 {[%emt 0:01:08] A14: English Opening: 1...e6 with b3 by White.} 11. Na3 {[%emt 0:05:40]} Qd7 {[%emt 0:01:50]} 12. d3 {[%emt 0:11:10]} Rfd8 {[%emt 0:00:55] [#]} 13. Nc2 $146 {[%emt 0:01:45]} ({Predecessor:} 13. Rac1 h6 14. Ba1 Bb7 15. Qb2 dxc4 16. bxc4 Ne8 17. Qb1 Bf6 18. Bxf6 Nxf6 19. Nb5 {1-0 (45) Aleksandrov,A (2603)-Geller,J (2474) Sochi 2015}) 13... b5 {[%emt 0:05:56]} 14. Na3 {[%emt 0:04:27]} bxc4 {[%emt 0:00:53]} 15. dxc4 {[%emt 0:02:39]} Qc7 {[%emt 0:01:16]} 16. Qc2 {[%emt 0:04:53]} Qb6 {[%emt 0:08:11]} 17. cxd5 {[%emt 0:05:28]} (17. Ne5 $11) 17... exd5 $15 {[%emt 0:01:01]} 18. Qf5 {[%emt 0:06:06]} Nb4 {[%emt 0:04:00]} 19. Ne5 {[%emt 0:04:40]} c4 {[%emt 0:08:54]} 20. Bd4 {[%emt 0:05:19]} Qa5 {[%emt 0:02:54] [#]} (20... Qd6 $5 {[%cal Rc4c3]}) 21. Nexc4 {[%emt 0:00:09]} Bxc4 {[%emt 0:03:30]} (21... Qc7 22. Ne5) 22. Nxc4 {[%emt 0:00:14][%mdl 64] Pin} Qa6 {[%emt 0:00:17]} 23. Ne5 {[%emt 0:00:50]} Nc2 {[%emt 0:02:42]} 24. Bf1 {[%emt 0:01:06][%cal Bg2f1,Bf1d3,Bd3f5][%mdl 32] This bishop pair is nice.} Qb7 {[%emt 0:08:52]} 25. Rac1 {[%emt 0:00:44]} Nxd4 {[%emt 0:01:56]} 26. exd4 {[%emt 0:00:02]} Ba3 {[%emt 0:01:14]} 27. Rxc8 {[%emt 0:00:08]} Qxc8 {[%emt 0:00:06]} 28. Qf3 {[%emt 0:05:24]} Qc7 {[%emt 0:01:08]} 29. Bd3 {[%emt 0:01:25]} Bd6 {[%emt 0:04:39]} 30. Re1 {[%emt 0:05:13]} Re8 {[%emt 0:00:14][%cal Rd6e5]} 31. Re3 {[%emt 0:02:12] White is more active.} Bxe5 {[%emt 0:05:59] [#]} 32. Qe2 $1 {[%emt 0:00:01][%cal Re3e5]} ({Much worse is} 32. dxe5 Rxe5 33. Kg2 Qe7 $14) 32... Nd7 {[%emt 0:03:35][%cal Oe8e7]} 33. Bf5 {[%emt 0:00:14]} Rd8 {[%emt 0:11:14] Strongly threatening ...Bf6.} 34. Bxd7 {[%emt 0:03:13]} Bd6 {[%emt 0:00:16][%cal Be5d6,Bd6f8,Bf8g7][%mdl 32]} (34... Qc1+ $2 35. Kg2 Bd6 36. Re8+ Rxe8 37. Qxe8+ Bf8 38. Bc6 $18) 35. Re8+ {[%emt 0:00:39]} Bf8 {[%emt 0:02:23]} 36. Rxd8 {[%emt 0:00:10]} Qxd8 $16 {[%emt 0:00:07][%mdl 4096] Endgame KQB-KQB} 37. Qb5 {[%emt 0:00:05]} g6 {[%emt 0:03:51]} 38. Qxd5 {[%emt 0:00:08]} Bg7 {[%emt 0:00:06]} 39. Qd6 {[%emt 0:00:41]} Qb6 {[%emt 0:00:48]} (39... Qa5 $14) 40. Qxb6 {[%emt 0:00:00]} axb6 {[%emt 0:00:00] KB-KB} 41. d5 {[%emt 0:00:21]} Kf8 {[%emt 0:00:24]} 42. Bb5 {[%emt 0:06:09]} Ke7 {[%emt 0:00:48]} 43. a4 {[%emt 0:00:09]} Kd6 {[%emt 0:00:09]} 44. Bc4 {[%emt 0:01:09]} Bd4 {[%emt 0:03:20]} 45. Kg2 {[%emt 0:00:16]} f6 {[%emt 0:00:14]} 46. h3 {[%emt 0:00:34]} Kc5 {[%emt 0:01:37]} 47. Kf3 {[%emt 0:00:15]} Bc3 {[%emt 0:02:03]} 48. Ke4 {[%emt 0:00:27]} Be1 {[%emt 0:00:15]} 49. Ke3 {[%emt 0:00:08]} Bb4 {[%emt 0:01:00]} 50. g4 {[%emt 0:01:57]} Ba3 {[%emt 0:03:27]} 51. Ke4 {[%emt 0:00:35]} Kd6 {[%emt 0:00:31]} 52. Ba6 {[%emt 0:01:18]} Bc5 {[%emt 0:00:33]} 53. f3 {[%emt 0:00:08]} Bf2 {[%emt 0:01:43]} 54. Bc8 {[%emt 0:00:28]} Bc5 {[%emt 0:05:23]} 55. Be6 {[%emt 0:00:09]} Bf2 {[%emt 0:01:59]} 56. Kd3 {[%emt 0:00:48]} Kc5 {[%emt 0:00:48]} 57. Bf7 {[%emt 0:02:18]} Bg3 {[%emt 0:00:37]} 58. Ke4 {[%emt 0:01:26]} Bh2 $2 {[%emt 0:00:39]} (58... Kd6 $16 {is a better defense.} 59. Bg8 h5) 59. Bg8 $18 {[%emt 0:00:39]} h5 {[%emt 0:02:23]} 60. gxh5 {[%emt 0:00:31]} f5+ {[%emt 0:00:06]} 61. Kd3 {[%emt 0:00:10]} gxh5 {[%emt 0:00:12]} 62. Be6 {[%emt 0:01:54]} Bf4 $2 {[%emt 0:01:06]} (62... b5 63. a5 (63. Bxf5 bxa4 64. bxa4 Kxd5 $18) 63... Bc7 64. b4+ (64. Bxf5 Bxa5 65. Ke4 h4 $16) 64... Kxb4) 63. Bxf5 {[%emt 0:00:17]} Kxd5 {[%emt 0:00:19]} 64. b4 {[%emt 0:10:46]} Bc7 {[%emt 0:03:01]} 65. Be4+ {[%emt 0:00:31]} Ke6 $2 {[%emt 0:03:04]} (65... Ke5 66. Bg6 Ke6) 66. Kc4 {[%emt 0:00:52]} Ke5 {[%emt 0:03:21]} 67. Kb5 {[%emt 0:00:19]} Kf4 {[%emt 0:01:15]} 68. a5 {[%emt 0:04:24]} bxa5 {[%emt 0:19:25]} 69. bxa5 {[%emt 0:00:06]} Be5 {[%emt 0:00:00]} 70. Kc5 {[%emt 0:01:59]} (70. a6 $142 Bd4 71. Kc4 Bb6 72. Kd5 Bg1 73. Kc6 Kg3 74. Kd6 Kf4 75. Bc6) 70... Bc3 {[%emt 0:00:00]} 71. a6 {[%emt 0:00:04]} Be1 {[%emt 0:00:00]} 72. Kc6 {[%emt 0:00:06]} Bf2 {[%emt 0:00:00] [#]} 73. Kb7 $2 {[%emt 0:00:04]} (73. h4 $1 $18 {and the rest is easy. Threatens to win with Kd5.} Kg3 74. Kd6) 73... Kg3 $16 {[%emt 0:00:00]} 74. a7 {[%emt 0:00:10]} (74. Bg6 $16 Kxf3 75. Be8 (75. a7 Bxa7 76. h4 Be3 $11)) 74... Bxa7 $1 $11 {[%emt 0:00:00] The position is equal.} 75. Kxa7 {[%emt 0:00:03]} Kxh3 {[%emt 0:00:00] KB-KP} 76. f4 {[%emt 0:00:04]} Kg4 $1 {[%emt 0:00:00]} 77. f5 {[%emt 0:00:02] White threatens f6 and mate.} Kg5 {[%emt 0:00:00]} 78. Kb6 {[%emt 0:00:06]} Kf6 $1 {[%emt 0:00:00]} 79. Kc5 {[%emt 0:02:49] White wants to mate with Kd4.} Ke5 $1 {[%emt 0:00:00] [#]} 80. Kc4 $1 {[%emt 0:00:52] Threatening mate with Kd3.} h4 {[%emt 0:00:00]} 81. Kd3 {[%emt 0:00:07][%cal Od3e2]} h3 {[%emt 0:00:00]} 82. Ke3 {[%emt 0:00:01] Kf3 would kill now.} h2 {[%emt 0:00:00]} 83. Kf2 {[%emt 0:00:14][%cal Of2g2]} h1=Q {[%emt 0:00:00]} (83... Kxe4 $5 84. Kg2 Kxf5 $11) 84. Bxh1 {[%emt 0:00:05][%cal Oh1e4] Intending Be4! and mate.} Kxf5 {[%emt 0:00:00] Black escapes into a draw.  Weighted Error Value: White=0.07 (flawless) /Black=0.13 (very precise)} 1/2-1/2

[Event "Italian-ch Semifinal 2022"]
[Site "Acqui Terme"]
[Date "2022.06.15"]
[Round "4.4"]
[White "Martorelli, Antonio"]
[Black "Lumachi, Gabriele"]
[Result "1/2-1/2"]
[ECO "C54"]
[WhiteElo "2141"]
[BlackElo "2347"]
[Annotator "TA"]
[PlyCount "233"]
[EventDate "2022.06.15"]
[EventType "swiss"]
[EventCountry "ITA"]
[SourceTitle "playchess.com"]
[Source "ChessBase"]
[SourceQuality "1"]
[TimeControl "40/5400+30:1800+30"]

{[%evp 35,233,-47,-32,-38,-36,-87,-42,-38,-12,-10,0,-29,-19,-54,0,0,0,0,0,-37,-27,-540,-529,-525,-510,-457,-118,-95,-104,-244,-240,-243,-243,-238,-234,-195,-9,-8,-26,-8,-4,-8,0,0,0,0,0,-331,-311,-241,0,-8,-2,-8,-8,-8,-8,-336,-242,-242,-242,-320,0,0,0,0,0,8,29973,29975,29978,29979,29979,29972,29971,29973,29973,29974,29978,29979,29979,29980,29980,29981,29981,29982,29982,29983,29983,29984,29984,0,29985,0,29986,29973,29970,29975,29975,29976,29972,0,0,0,0,0,0,471,29982,0,0,0,29982,0,0,0,29968,29969,29968,29970,29970,29971,0,0,0,0,0,0,0,0,29971,29972,29972,29973,29966,0,0,0,0,0,0,0,0,0,0,0,0,0,0,0,0,0,0,0,0,0,0,0,0,0,0,0,0,0,0,0,0,0,0,0,0,0,0,0,0,0,0,0,0,0,0,0,0,0,0,0,0,0,0,0,0,0,0,0,8,0,0,0,0,0]} 1. e4 {[%emt 0:00:30]} e5 {[%emt 0:02:06]} 2. Nf3 {[%emt 0:00:24]} Nc6 {[%emt 0:00:18]} 3. Bc4 {[%emt 0:00:09]} Bc5 {[%emt 0:01:23]} 4. c3 {[%emt 0:00:23]} Nf6 {[%emt 0:00:24]} 5. d3 {[%emt 0:00:12]} d6 {[%emt 0:00:52]} 6. Nbd2 {[%emt 0:00:45]} a6 {[%emt 0:02:39]} 7. Bb3 {[%emt 0:00:13]} Ba7 {[%emt 0:03:55]} 8. Nf1 {[%emt 0:01:59]} h6 {[%emt 0:10:40]} 9. h3 {[%emt 0:00:11]} d5 {[%emt 0:01:29]} 10. Qe2 {[%emt 0:01:00]} Be6 {[%emt 0:01:14]} 11. Ng3 {[%emt 0:09:18]} Qd6 {[%emt 0:01:34]} 12. O-O {[%emt 0:13:31]} O-O-O {[%emt 0:02:30]} 13. Be3 {[%emt 0:04:33]} d4 {[%emt 0:05:53]} 14. cxd4 {[%emt 0:00:39]} Nxd4 {[%emt 0:00:16]} 15. Bxd4 {[%emt 0:01:23]} Bxd4 {[%emt 0:00:13]} 16. Nf5 {[%emt 0:06:31]} Bxf5 {[%emt 0:01:19]} 17. exf5 {[%emt 0:00:02]} Rd7 {[%emt 0:00:52]} 18. Rfe1 {[%emt 0:03:54]} Re7 {[%emt 0:02:55]} 19. Rac1 {[%emt 0:03:08]} Rhe8 {[%emt 0:05:24]} 20. Qc2 {[%emt 0:03:12]} (20. Nxd4 $15 exd4 21. Qd2) 20... Kb8 {[%emt 0:01:59]} 21. Nxd4 {[%emt 0:10:59]} Qxd4 {[%emt 0:00:59]} 22. Bc4 {[%emt 0:09:34]} Ka7 {[%emt 0:15:22]} 23. Re3 {[%emt 0:05:30]} Qd7 {[%emt 0:00:49]} 24. a4 {[%emt 0:07:41]} e4 {[%emt 0:11:44]} ({Black should try} 24... Qxf5 $15 25. b4 b6) 25. dxe4 $11 {[%emt 0:02:44]} Rxe4 {[%emt 0:00:22]} 26. Rxe4 {[%emt 0:01:42]} Rxe4 {[%emt 0:01:08]} 27. a5 {[%emt 0:02:12]} Kb8 {[%emt 0:07:57]} (27... Qxf5 $2 28. Bd3 $18) 28. Rd1 $2 {[%emt 0:04:43][%mdl 8192]} (28. Qc3 $11) 28... Rxc4 $1 $19 {[%emt 0:01:11]} 29. Rxd7 {[%emt 0:00:48]} Rxc2 {[%emt 0:00:08]} 30. Rxf7 {[%emt 0:00:06]} Nh5 $2 {[%emt 0:14:00]} (30... Rxb2 $19 31. Rxg7 c5) 31. g4 $17 {[%emt 0:00:12]} Nf4 {[%emt 0:00:05]} (31... Rxb2 $6 32. gxh5 Rb5 33. Kg2 $11) 32. Rxg7 {[%emt 0:00:18]} (32. h4 $17 {was called for.}) 32... Nxh3+ $19 {[%emt 0:00:06]} 33. Kg2 {[%emt 0:00:33]} Nxf2 {[%emt 0:00:05]} 34. Kf3 {[%emt 0:00:32]} Rxb2 {[%emt 0:03:30]} 35. f6 {[%emt 0:03:40]} Nd1 $2 {[%emt 0:02:01]} ({Black should play} 35... Ka7 $1 $19 {...Ra2 is the strong threat.} 36. Rh7 (36. f7 Nd1 $17) 36... Nh3 37. Rxh6 Ng5+ 38. Kf4 Nf7) 36. Kf4 $1 $11 {[%emt 0:03:40]} ({But not} 36. Rg8+ Ka7 37. Rg6 Rf2+ 38. Ke4 Rh2 $17) 36... Rf2+ {[%emt 0:00:20]} 37. Ke5 {[%emt 0:00:07]} Ka7 {[%emt 0:00:44]} 38. Rxc7 {[%emt 0:00:31]} Ne3 {[%emt 0:00:23]} 39. Rg7 $1 {[%emt 0:00:34]} Nc4+ {[%emt 0:00:39]} 40. Ke6 {[%emt 0:00:00]} Nxa5 {[%emt 0:00:00]} 41. Rh7 $2 {[%emt 0:11:50][%mdl 8192]} (41. f7 $1 $11) 41... Re2+ $1 $19 {[%emt 0:12:25]} 42. Kf5 {[%emt 0:04:03]} Rh2 $2 {[%emt 0:02:55]} (42... Nc4 $1 $19 {[%cal Rc4e3] White must now prevent ...Ne3+.} 43. Rxh6 Nd6+ 44. Kg6 Rg2) 43. Kg6 {[%emt 0:13:41]} Nc6 {[%emt 0:09:41]} 44. g5 {[%emt 0:01:24]} a5 {[%emt 0:01:57]} 45. Rxh6 {[%emt 0:01:26]} Rg2 {[%emt 0:00:05]} 46. Rh3 $2 {[%emt 0:02:04][%mdl 8192]} (46. Kh7 $11 {and White stays safe.} Rxg5 47. f7) 46... a4 {[%emt 0:00:51]} 47. Re3 {[%emt 0:00:42]} Nd8 $1 {[%emt 0:03:30]} 48. Re8 {[%emt 0:00:28]} Nf7 $2 {[%emt 0:01:53]} (48... Rd2 $19 49. Kg7 b5) 49. Kxf7 $11 {[%emt 0:00:25]} Rxg5 {[%emt 0:00:06]} 50. Ke6 {[%emt 0:00:32]} Rg6 {[%emt 0:02:02]} 51. Kf5 {[%emt 0:00:26]} Rxf6+ $4 {[%emt 0:00:35][%mdl 8192]} (51... Rg2 $11) 52. Kxf6 {[%emt 0:00:02]} Ka6 {[%emt 0:00:30]} 53. Ke5 {[%emt 0:00:18]} Ka5 {[%emt 0:00:17]} 54. Kd5 {[%emt 0:01:03]} Kb4 {[%emt 0:00:12]} 55. Re4+ $1 {[%emt 0:00:37]} Kb3 {[%emt 0:00:18]} 56. Kc5 $1 {[%emt 0:00:34]} b6+ {[%emt 0:01:11]} 57. Kb5 {[%emt 0:00:32]} a3 {[%emt 0:00:05]} 58. Re3+ $1 {[%emt 0:00:21]} Kb2 {[%emt 0:00:05]} 59. Kb4 {[%emt 0:00:30]} a2 {[%emt 0:00:18]} 60. Re2+ $1 {[%emt 0:00:27]} Kb1 {[%emt 0:00:16]} 61. Kb3 $1 {[%emt 0:00:39]} a1=N+ {[%emt 0:00:11]} 62. Kc3 {[%emt 0:00:10]} b5 {[%emt 0:00:07]} 63. Rb2+ {[%emt 0:00:59]} Kc1 {[%emt 0:00:05]} 64. Rh2 $2 {[%emt 0:00:33]} (64. Ra2 Kd1 65. Rxa1+ Ke2 66. Kd4 Kf3 67. Rb1 b4 68. Rxb4 Kf4 69. Rb5) 64... Kb1 $2 {[%emt 0:00:09][%mdl 8192]} (64... b4+ $11 65. Kxb4 Nc2+ 66. Kc4 Ne1) 65. Rg2 {[%emt 0:00:16]} b4+ {[%emt 0:00:53]} 66. Kxb4 {[%emt 0:00:12]} Nc2+ {[%emt 0:00:37]} 67. Kc3 {[%emt 0:00:18]} Ne3 {[%emt 0:00:38]} 68. Rb2+ $2 {[%emt 0:00:30]} (68. Rg5 Nd1+ 69. Kd2 Nb2 70. Rg4 Ka2 71. Kc1 Kb3 72. Rg3+ Ka2 73. Rg2) 68... Kc1 $11 {[%emt 0:00:26]} 69. Re2 {[%emt 0:00:45]} Nd1+ {[%emt 0:00:19]} 70. Kb3 {[%emt 0:00:23]} Kb1 {[%emt 0:00:13]} 71. Rc2 $2 {[%emt 0:01:04][%mdl 8192]} (71. Rg2 $11) 71... Ne3 $18 {[%emt 0:00:08]} 72. Rc8 $2 {[%emt 0:00:31]} (72. Rc5 $1 Nd1 73. Rh5 Kc1 74. Rh2 Kb1 75. Rg2 Kc1 76. Re2 Kb1 77. Rd2) 72... Nd1 $11 {[%emt 0:00:53]} 73. Rc7 {[%emt 0:00:22]} Ne3 $2 {[%emt 0:00:37][%mdl 8192]} (73... Nb2 $11) 74. Rc6 $2 {[%emt 0:00:31]} (74. Rc5 $1 Nd1 75. Rc7 Ne3 76. Re7 Nd1 77. Re8 Kc1 78. Re2 Kb1 79. Rd2) 74... Nd1 $11 {[%emt 0:00:09]} 75. Rc5 {[%emt 0:00:22]} Ne3 $2 {[%emt 0:00:04][%mdl 8192]} (75... Nb2 $11) 76. Kc3 $1 {[%emt 0:00:14]} Nd1+ {[%emt 0:00:57]} 77. Kd2 $1 {[%emt 0:00:09]} Nb2 {[%emt 0:00:27]} 78. Rb5 {[%emt 0:00:30]} Ka2 {[%emt 0:00:18]} 79. Kc2 {[%emt 0:00:40]} Na4 $1 {[%emt 0:00:20]} 80. Rb8 {[%emt 0:01:10]} Ka3 $1 {[%emt 0:00:20]} 81. Rb3+ {[%emt 0:00:30]} Ka2 {[%emt 0:00:07]} 82. Rh3 {[%emt 0:00:29]} Nc5 $2 {[%emt 0:00:49][%mdl 8192] [#]} (82... Nb6 $11) 83. Kc3 $1 {[%emt 0:00:11]} Na4+ {[%emt 0:00:34] [#]} 84. Kb4 $1 {[%emt 0:00:14]} Nb2 {[%emt 0:00:04]} 85. Rg3 $2 {[%emt 0:00:55]} (85. Rh1 {mates} Nd3+ 86. Kc3 Nc5 87. Rh5 Ne6 88. Re5 Nf4 89. Kc2 Ka3 90. Re3+ Kb4 91. Re4+ Kc5 92. Rxf4) 85... Kb1 $1 $11 {[%emt 0:00:17]} 86. Kb3 {[%emt 0:00:16]} Nd1 {[%emt 0:00:18]} 87. Rg2 {[%emt 0:00:41]} Kc1 {[%emt 0:00:14]} 88. Rc2+ {[%emt 0:00:29]} Kb1 {[%emt 0:00:06]} 89. Rc5 {[%emt 0:00:44]} Ne3 {[%emt 0:00:12]} 90. Re5 {[%emt 0:00:33]} Nd1 {[%emt 0:00:17]} 91. Ra5 {[%emt 0:00:31]} (91. Re1 $5 {[%cal Re1d1]} Kc1 92. Rg1 $14) 91... Kc1 {[%emt 0:01:09]} 92. Rd5 {[%emt 0:00:27]} Ne3 {[%emt 0:00:25]} 93. Rd3 {[%emt 0:00:14]} Nd1 {[%emt 0:00:17]} 94. Rd7 {[%emt 0:00:55]} Ne3 {[%emt 0:00:26]} 95. Kc3 {[%emt 0:00:09]} Nd1+ {[%emt 0:00:33]} 96. Kb3 {[%emt 0:00:36]} Ne3 {[%emt 0:00:09]} 97. Rd4 {[%emt 0:01:20]} Nd1 {[%emt 0:01:07]} 98. Rd3 {[%emt 0:00:00]} Nf2 {[%emt 0:01:22]} 99. Rg3 {[%emt 0:00:00]} Nd1 {[%emt 0:02:12]} 100. Rg2 {[%emt 0:00:24]} Ne3 {[%emt 0:01:13]} 101. Rf2 {[%emt 0:00:16]} Nd1 {[%emt 0:00:56]} 102. Re2 {[%emt 0:00:08]} Kb1 {[%emt 0:00:14]} 103. Rc2 {[%emt 0:00:54]} Ne3 {[%emt 0:00:12]} 104. Rc5 {[%emt 0:00:59]} Nd1 $1 {[%emt 0:00:15]} 105. Rc6 {[%emt 0:00:35]} Ne3 {[%emt 0:00:12]} 106. Rd6 {[%emt 0:00:07]} Kc1 {[%emt 0:00:26]} 107. Kc3 {[%emt 0:00:09]} Nd1+ {[%emt 0:00:11]} 108. Kd3 {[%emt 0:00:03]} Nb2+ {[%emt 0:00:44]} 109. Kc3 {[%emt 0:00:28]} Nd1+ {[%emt 0:00:11]} 110. Kb3 {[%emt 0:00:01]} Ne3 {[%emt 0:00:14]} 111. Rc6+ {[%emt 0:00:12]} Kd2 {[%emt 0:00:10]} 112. Re6 {[%emt 0:00:39]} Kd3 {[%emt 0:00:07]} 113. Rd6+ {[%emt 0:00:11]} Ke4 {[%emt 0:00:06]} 114. Kc3 {[%emt 0:00:33]} Nd5+ {[%emt 0:00:07]} 115. Kc4 {[%emt 0:00:20]} Ne3+ {[%emt 0:00:04]} 116. Kc5 {[%emt 0:00:09]} Kf3 {[%emt 0:00:04]} 117. Re6 {[%emt 0:00:09]} 1/2-1/2

[Event "Italian-ch Semifinal 2022"]
[Site "Acqui Terme"]
[Date "2022.06.15"]
[Round "4.6"]
[White "Bettalli, Francesco"]
[Black "Tripodi, Enzo"]
[Result "1-0"]
[ECO "B13"]
[WhiteElo "2304"]
[BlackElo "2170"]
[Annotator "TA"]
[PlyCount "121"]
[EventDate "2022.06.15"]
[EventType "swiss"]
[EventCountry "ITA"]
[SourceTitle "playchess.com"]
[Source "ChessBase"]
[SourceQuality "1"]
[TimeControl "40/5400+30:1800+30"]

{[%evp 12,121,33,30,33,33,34,4,77,32,31,33,33,41,51,47,54,31,35,26,89,31,67,68,67,68,84,83,82,67,66,38,60,32,80,68,99,57,94,86,353,348,345,349,349,349,341,343,341,327,325,310,312,307,320,316,306,242,273,0,281,256,256,249,243,255,389,371,520,520,678,669,644,640,597,601,557,556,552,557,556,539,538,533,542,542,444,423,708,708,708,705,868,798,1745,1927,1784,1758,29980,29981,29981,29982,29981,29982,29981,29982,29985,29986,29990,29991,29993,29994]} 1. d4 {[%emt 0:00:54]} c6 {[%emt 0:03:36]} 2. e4 {[%emt 0:00:19]} d5 {[%emt 0:00:22]} 3. exd5 {[%emt 0:02:48]} cxd5 {[%emt 0:00:05]} 4. Bd3 {[%emt 0:00:05]} Nc6 {[%emt 0:00:30]} 5. c3 {[%emt 0:00:04]} Nf6 {[%emt 0:00:16]} 6. Bf4 {[%emt 0:00:07]} g6 {[%emt 0:00:03]} 7. Nd2 {[%emt 0:00:31]} Nh5 {[%emt 0:00:04] 7...Bf5 gains popularity. B13: Caro-Kann: Exchange Variation and Panov-Botvinnik Attack.} 8. Be3 {[%emt 0:01:48]} Qc7 {[%emt 0:02:36]} 9. g3 {[%emt 0:07:51] [#]} f5 $146 {[%emt 0:00:05]} (9... Bg7 $11) ({Predecessor:} 9... Bg7 10. f4 Nf6 11. Ngf3 Bf5 12. Qc2 Bxd3 13. Qxd3 O-O 14. f5 Qb6 15. b3 Rac8 {1-0 (31) Narayanan,S (2540)-Molina,R (2434) Chess.com INT 2020}) 10. f4 {[%emt 0:00:09]} Bg7 {[%emt 0:05:44]} 11. Ngf3 {[%emt 0:00:10]} e6 {[%emt 0:01:10]} 12. Qe2 {[%emt 0:00:32]} Bd7 {[%emt 0:00:54]} 13. O-O {[%emt 0:01:39]} O-O {[%emt 0:00:17]} 14. Rac1 {[%emt 0:00:25]} Nf6 {[%emt 0:01:05]} 15. Ne5 {[%emt 0:01:31]} Nxe5 {[%emt 0:05:11]} (15... Rfc8 $11 {keeps the balance.}) 16. fxe5 {[%emt 0:00:47]} (16. dxe5 $16 Ne4 17. c4) 16... Ng4 {[%emt 0:02:12]} 17. Bg5 {[%emt 0:04:25]} Bc6 {[%emt 0:06:07]} 18. Nf3 {[%emt 0:01:19][%cal Bd2f3,Bf3g5,Bg5h3,Bh3f4,Bf4h5,Bh5f6][%mdl 32]} Rae8 {[%emt 0:09:43]} 19. Rc2 {[%emt 0:07:55]} Bh6 {[%emt 0:02:04]} 20. Bxh6 {[%emt 0:06:42]} Nxh6 {[%emt 0:00:55]} 21. Ng5 {[%emt 0:00:08]} Qe7 {[%emt 0:01:58]} 22. Nh3 {[%emt 0:00:24]} Ng4 {[%emt 0:15:03]} (22... Nf7 $14) 23. Qd2 {[%emt 0:06:56]} Qg7 {[%emt 0:01:51]} 24. Be2 {[%emt 0:01:42]} a6 {[%emt 0:13:05]} 25. Nf4 {[%emt 0:03:29]} g5 $2 {[%emt 0:02:12][%mdl 8192] [#]} (25... Bb5 $16) 26. Nh5 $18 {[%emt 0:01:22]} Qg6 {[%emt 0:02:29]} 27. Bxg4 {[%emt 0:00:05]} fxg4 {[%emt 0:00:01]} 28. Nf6+ {[%emt 0:00:05]} Kh8 {[%emt 0:00:17]} 29. Nxe8 {[%emt 0:01:10]} Rxf1+ {[%emt 0:00:03]} 30. Kxf1 {[%emt 0:00:06]} Bxe8 {[%emt 0:01:21][%mdl 4096] Endgame KQR-KQB} 31. Qf2 {[%emt 0:01:53] [#] Strongly threatening Qf8+.} Kg8 {[%emt 0:00:35] Prevents Qf8+.} 32. Kg1 {[%emt 0:02:20]} Bb5 {[%emt 0:00:49]} 33. Rc1 {[%emt 0:00:45]} Bd3 {[%emt 0:02:11]} 34. Qe3 {[%emt 0:01:15]} Qf5 {[%emt 0:02:59]} 35. Qf2 {[%emt 0:01:41]} Qg6 $1 {[%emt 0:00:41]} 36. Qf6 {[%emt 0:04:33]} Qxf6 {[%emt 0:00:03]} 37. exf6 {[%emt 0:00:03] KR-KB} Kf7 {[%emt 0:00:02]} 38. Kf2 {[%emt 0:00:16]} b5 {[%emt 0:00:56]} (38... Bb5 $142 39. Rh1 Bd3) 39. Ke3 {[%emt 0:00:17]} Be4 {[%emt 0:01:06]} (39... Bg6 $142 40. a4 h6 41. axb5 axb5) 40. b3 {[%emt 0:00:00]} Bf3 {[%emt 0:00:00]} 41. c4 {[%emt 0:00:29]} dxc4 {[%emt 0:01:51]} 42. bxc4 {[%emt 0:00:01]} bxc4 {[%emt 0:00:53]} 43. Rxc4 {[%emt 0:00:07]} Kxf6 {[%emt 0:01:09]} 44. Rc7 {[%emt 0:01:10]} Bd5 {[%emt 0:00:22]} 45. a3 {[%emt 0:01:01]} h5 {[%emt 0:04:04]} 46. Rh7 {[%emt 0:00:55]} Kg6 {[%emt 0:04:09]} 47. Rh8 {[%emt 0:00:54]} Bc6 {[%emt 0:01:26]} 48. Kd3 {[%emt 0:00:14]} Bd5 {[%emt 0:00:44]} 49. Kc3 {[%emt 0:00:14]} Bf3 {[%emt 0:02:16]} (49... a5 $142 50. Kd3 a4) 50. Kb4 {[%emt 0:00:53]} Be2 {[%emt 0:00:46]} 51. Kc5 {[%emt 0:00:12]} Bd3 {[%emt 0:01:28]} 52. Kd6 {[%emt 0:00:09]} Bc4 {[%emt 0:00:19]} 53. Ke5 {[%emt 0:00:04]} Bb3 {[%emt 0:00:54]} 54. Rg8+ {[%emt 0:00:10]} Kh6 {[%emt 0:00:45]} 55. Kf6 {[%emt 0:00:02][%cal Rg8h8] White mates.} Kh7 {[%emt 0:00:02]} 56. Rxg5 {[%emt 0:00:10]} Kh6 {[%emt 0:00:02]} 57. Rg8 {[%emt 0:00:16][%cal Rg8h8]} Kh7 {[%emt 0:00:06]} 58. Re8 {[%emt 0:00:04]} a5 {[%emt 0:00:26]} 59. Rxe6 {[%emt 0:00:06]} a4 {[%emt 0:00:03]} 60. Re5 {[%emt 0:00:08]} Kh6 {[%emt 0:00:17]} 61. d5 {[%emt 0:00:02] Weighted Error Value: White=0.14 (very precise) /Black=0.46} 1-0